[Event "US Masters 2022"]
[Site "Charlotte"]
[Date "2022.11.26"]
[Round "6.23"]
[White "Jacobson, Aaron"]
[Black "Mardov, Dimitar"]
[Result "0-1"]
[ECO "B43"]
[WhiteElo "2351"]
[BlackElo "2432"]
[Annotator "TA"]
[PlyCount "108"]
[EventDate "2022.11.23"]
[EventType "swiss"]
[EventCountry "USA"]
[SourceTitle "playchess.com"]
[Source "ChessBase"]
[SourceQuality "1"]
[TimeControl "5400+30"]

{[%evp 9,108,22,36,7,7,4,39,45,43,36,56,64,70,45,52,43,47,51,58,52,60,51,36,6,0,-8,23,15,18,22,54,47,64,64,72,32,44,38,52,25,19,3,4,0,0,-17,-12,-10,8,0,0,-37,-16,-7,0,0,0,0,0,-14,-14,-15,-14,-14,0,-6,0,-102,-102,-102,-102,-102,-91,-102,-102,-102,-91,-100,-70,-95,-37,-41,-55,-127,-120,-135,-125,-135,-135,-127,-124,-342,-257,-218,-226,-464,-364,-991,-912,-29976,-2118]} 1. e4 {[%emt 0:07:15]} c5 {[%emt 0:00:30]} 2. Nf3 {[%emt 0:00:07]} e6 {[%emt 0:00:06]} 3. d4 {[%emt 0:00:06]} cxd4 {[%emt 0:00:02]} 4. Nxd4 {[%emt 0:00:07]} a6 {[%emt 0:00:06]} 5. Nc3 {[%emt 0:00:05]} Qc7 {[%emt 0:00:50]} 6. Qg4 {[%emt 0:00:56] B43: Sicilian: Kan Variation: 5 Nc3.} Nf6 {[%emt 0:10:43]} 7. Qg3 {[%emt 0:00:45]} Qxg3 {[%emt 0:02:31]} 8. hxg3 {[%emt 0:00:12] White is slightly better.} (8. fxg3 Bb4 $11) 8... Bb4 {[%emt 0:03:58]} 9. Bd3 {[%emt 0:09:55]} d6 {[%emt 0:08:02]} 10. Bd2 {[%emt 0:01:32] [#]} e5 $146 {[%emt 0:11:31] Prevents f3.} ({Predecessor:} 10... Nbd7 11. f3 Ne5 12. g4 O-O 13. Nb3 d5 14. exd5 Nxd3+ 15. cxd3 Rd8 16. O-O-O a5 {½-½ (31) Milov,L (2455)-Van Wely,L (2661) Sanem 2017}) 11. Nb3 {[%emt 0:05:11]} Be6 {[%emt 0:06:11]} 12. f3 {[%emt 0:14:24]} Nc6 {[%emt 0:04:15]} 13. g4 {[%emt 0:08:53]} Nd7 {[%emt 0:02:10]} 14. g5 {[%emt 0:11:04]} f6 {[%emt 0:04:45]} 15. gxf6 {[%emt 0:08:12]} (15. Nd5 $5 {[%cal Rd5b4]} Bxd2+ 16. Nxd2 $14 (16. Kxd2 Bxd5 17. exd5 Ne7 $11)) 15... Nxf6 {[%emt 0:00:34]} 16. Nd1 {[%emt 0:02:10]} Bxd2+ {[%emt 0:05:11]} 17. Kxd2 {[%emt 0:00:56]} a5 {[%emt 0:02:28]} 18. Ne3 {[%emt 0:02:17]} a4 {[%emt 0:01:34]} 19. Nc1 {[%emt 0:00:10][%cal Bb3c1,Bc1e2,Be2c3][%mdl 32]} Kf7 {[%emt 0:06:30]} 20. Ne2 {[%emt 0:02:33]} h6 {[%emt 0:01:05]} 21. Nc3 {[%emt 0:03:13]} Nb4 {[%emt 0:05:36]} 22. a3 {[%emt 0:08:04]} Nxd3 {[%emt 0:22:52]} 23. cxd3 {[%emt 0:01:42][%cal Bc2d3,Bd3d4,Bd4d5][%mdl 32]} Nd7 {[%emt 0:00:00][%cal Bf6d7,Bd7b6,Bb6c4,Bc4a5,Ba5b3,Bb3c5][%mdl 32]} 24. Nc2 {[%emt 0:03:07]} h5 {[%emt 0:00:00]} 25. d4 {[%emt 0:01:13] [#] aiming for d5.} Nb6 {[%emt 0:00:00]} 26. d5 {[%emt 0:00:35]} Nc4+ {[%emt 0:00:00]} 27. Ke2 {[%emt 0:00:56]} Bd7 {[%emt 0:00:00]} 28. Ne3 {[%emt 0:02:49]} Na5 {[%emt 0:00:00]} 29. Kd3 {[%emt 0:04:31]} Ke7 {[%emt 0:00:00]} 30. Nc4 {[%emt 0:00:37]} Nb3 {[%emt 0:00:00]} 31. Raf1 {[%emt 0:00:02]} g5 {[%emt 0:00:00]} 32. Nb6 {[%emt 0:00:45] Against b5. Pair of Knights!} Ra6 {[%emt 0:00:00][%cal Ba8a6,Ba6b6,Bb6b3,Bb3d3][%mdl 32]} 33. Nxd7 {[%emt 0:00:10]} Kxd7 {[%emt 0:00:00]} 34. Na2 {[%emt 0:00:09]} Nc5+ {[%emt 0:00:00]} 35. Ke3 {[%emt 0:00:12]} Rb6 {[%emt 0:00:00]} 36. Nb4 {[%emt 0:01:02]} Na6 {[%emt 0:00:00]} 37. Nd3 {[%emt 0:00:03]} Rb3 {[%emt 0:00:33] Strongly threatening ...Nc5.} 38. Kd2 {[%emt 0:00:54]} (38. Rc1 $1 $11 {was the only way to keep the balance.}) 38... Nc5 $17 {[%emt 0:01:09]} 39. Nxc5+ {[%emt 0:00:08]} dxc5 {[%emt 0:00:03][%mdl 4096] Endgame KRR-KRR} 40. Kc2 {[%emt 0:02:27]} Kd6 {[%emt 0:00:27]} 41. Kb1 {[%emt 0:00:47]} b5 {[%emt 0:02:28] Black is more active.} 42. Rc1 {[%emt 0:00:07]} Rd3 {[%emt 0:01:04]} 43. Rc3 {[%emt 0:01:00]} Rd4 {[%emt 0:00:30]} 44. Rhc1 {[%emt 0:00:07]} Rc8 {[%emt 0:01:00]} (44... c4 $17) 45. Rh1 $15 {[%emt 0:00:37]} h4 {[%emt 0:00:33]} 46. Rc2 {[%emt 0:00:23]} ({White should play} 46. g3 $15) 46... Rh8 $17 {[%emt 0:00:59]} 47. Re2 {[%emt 0:00:56]} Rd3 {[%emt 0:01:04]} 48. Kc2 {[%emt 0:00:18]} Rb3 {[%emt 0:00:11]} 49. Kb1 {[%emt 0:00:39]} c4 {[%emt 0:00:52]} 50. Rh3 $2 {[%emt 0:00:30] Now White is beyond hope.} (50. Rg1 $17) 50... Rb8 {[%emt 0:00:48] And now ...b4 would win.} 51. Rc2 {[%emt 0:00:21] [#]} b4 $1 {[%emt 0:00:54]} 52. axb4 {[%emt 0:00:39]} (52. Rxc4 bxa3 53. Rxa4 (53. Rc6+ $2 Kd7 $19)) 52... R8xb4 $19 {[%emt 0:00:05]} ({Inferior is} 52... R3xb4 53. Ka2 $17) 53. Ka2 {[%emt 0:00:14] Prevents a3.} (53. Kc1 c3 54. Rxc3 Rxb2 55. Rc6+ Kd7 56. Rc2 Rxc2+ 57. Kxc2) 53... a3 {[%emt 0:00:29][%cal Ba4a3,Ba3b2][%mdl 32]} 54. Rxc4 {[%emt 0:00:51]} axb2 {[%emt 0:00:29] Weighted Error Value: White=0.45/Black=0.10 (very precise)} (54... Rxb2+ $2 {perishes.} 55. Kxa3 R4b3+ 56. Ka4 $19) 0-1

[Event "US Masters 2022"]
[Site "Charlotte"]
[Date "2022.11.26"]
[Round "6.24"]
[White "Tsolakidou, Stavroula"]
[Black "Canty, James"]
[Result "1/2-1/2"]
[ECO "C10"]
[WhiteElo "2381"]
[BlackElo "2158"]
[Annotator "TA"]
[PlyCount "36"]
[EventDate "2022.11.23"]
[EventType "swiss"]
[EventCountry "USA"]
[SourceTitle "playchess.com"]
[Source "ChessBase"]
[SourceQuality "1"]
[TimeControl "5400+30"]

{[%evp 9,36,0,2,0,28,23,26,13,10,16,13,0,22,17,47,31,42,-8,16,0,0,-31,-36,-28,-18,-29,-5,-5,-7]} 1. e4 {[%emt 0:09:04]} e6 {[%emt 0:07:05]} 2. d4 {[%emt 0:00:53]} d5 {[%emt 0:00:04]} 3. Nc3 {[%emt 0:01:16]} Be7 {[%emt 0:00:04]} 4. Bf4 {[%emt 0:02:29]} Nf6 {[%emt 0:03:36]} 5. e5 {[%emt 0:00:30]} Nfd7 $1 {[%emt 0:00:18]} 6. h4 {[%emt 0:00:31] [#] C10: French with 3 Nc3: Unusual Black 3rd moves and 3...dxe4.} h5 $146 {[%emt 0:27:30]} ({Predecessor:} 6... c5 7. dxc5 Nc6 8. Qg4 Ndxe5 9. Qxg7 Bf6 10. Qg3 Qa5 11. Bb5 Bd7 12. O-O-O O-O-O {0-1 (33) Oberoi,S (2259)-Canty,J (2175) Charlotte 2022}) 7. Nf3 {[%emt 0:20:16]} c5 {[%emt 0:09:25]} 8. Nb5 {[%emt 0:09:02] White has an edge.} a6 {[%emt 0:04:02]} 9. Nd6+ {[%emt 0:00:17]} Bxd6 {[%emt 0:00:07]} 10. exd6 {[%emt 0:00:05]} cxd4 {[%emt 0:00:09]} 11. Qxd4 {[%emt 0:01:29]} Qf6 {[%emt 0:00:51] [#] aiming for ...Qxd4.} 12. O-O-O {[%emt 0:09:31] Qe3 is the strong threat.} Qxd4 {[%emt 0:10:11]} 13. Rxd4 {[%emt 0:00:51]} (13. Nxd4 $14 Nc6 14. Nxc6 bxc6 15. c4) 13... Nc6 {[%emt 0:00:45]} 14. Rd1 {[%emt 0:00:30]} b5 {[%emt 0:00:31]} 15. c3 {[%emt 0:09:29]} Nc5 $1 {[%emt 0:05:38]} 16. Be2 {[%emt 0:08:15]} Ne4 {[%emt 0:03:00] Pair of Knights!} 17. Rhf1 {[%emt 0:01:02]} Kd7 {[%emt 0:00:24]} 18. Ng5 {[%emt 0:06:08]} Nxg5 {[%emt 0:00:19] Weighted Error Value: White=0.12 (very precise) /Black=0.09 (flawless)} 1/2-1/2

[Event "US Masters 2022"]
[Site "Charlotte"]
[Date "2022.11.27"]
[Round "7.1"]
[White "Liang, Awonder"]
[Black "Ramirez, Alejandro"]
[Result "0-1"]
[ECO "C10"]
[WhiteElo "2630"]
[BlackElo "2561"]
[Annotator "TA"]
[PlyCount "74"]
[EventDate "2022.11.23"]
[EventType "swiss"]
[EventCountry "USA"]
[SourceTitle "playchess.com"]
[Source "ChessBase"]
[SourceQuality "1"]
[TimeControl "5400+30"]

{[%evp 14,74,43,47,52,42,45,24,34,0,0,0,0,1,0,-15,-8,-10,-16,-30,-2,-11,-22,-23,-34,-226,-211,-218,-193,-304,-310,-283,-296,-306,-312,-314,-314,-319,-308,-320,-313,-275,-281,-351,-359,-344,-354,-440,-396,-917,-563,-585,-464,-515,-522,-618,-606,-569,-588,-571,-552,-1886,-1612]} 1. e4 {[%emt 0:00:01]} e6 {[%emt 0:04:39]} 2. d4 {[%emt 0:00:01]} d5 {[%emt 0:00:06]} 3. Nc3 {[%emt 0:00:04]} dxe4 {[%emt 0:00:15]} 4. Nxe4 {[%emt 0:00:01]} Bd7 {[%emt 0:00:05]} 5. Nf3 {[%emt 0:02:10]} Bc6 {[%emt 0:00:14]} 6. Bd3 {[%emt 0:01:52]} Nd7 {[%emt 0:00:44]} 7. O-O {[%emt 0:00:02]} Ngf6 {[%emt 0:00:05]} 8. Ng3 {[%emt 0:01:07]} g6 {[%emt 0:00:02] C10: French with 3 Nc3: Unusual Black 3rd moves and 3...dxe4.} 9. Re1 {[%emt 0:05:10]} Bg7 {[%emt 0:00:27]} 10. c3 {[%emt 0:13:31]} O-O {[%emt 0:00:32] White has an edge.} 11. h4 {[%emt 0:01:27][%cal Oh4h5] [#]} Bd5 $146 {[%emt 0:06:39] Prevents h5.} ({Predecessor:} 11... h6 12. Bc2 Re8 13. Qd3 Bxf3 14. Qxf3 c6 15. Bd2 a5 16. Rad1 Qb6 17. b3 Rad8 {½-½ (76) Jorge,R (1870)-Kryger,O (2137) Batumi 2018}) 12. b4 {[%emt 0:02:41][%cal Oh4h5]} a5 {[%emt 0:01:23] Prevents h5.} 13. b5 {[%emt 0:01:25][%cal Oh4h5]} c5 {[%emt 0:01:52] Inhibits h5.} 14. Ne5 {[%emt 0:23:48]} c4 {[%emt 0:00:40]} 15. Bc2 {[%emt 0:03:56]} (15. Bxc4 Nxe5 16. Bxd5 Nxd5 $15) 15... Nxe5 {[%emt 0:01:21]} 16. dxe5 {[%emt 0:00:01]} Nd7 $1 {[%emt 0:00:09][%csl LRe5,LRh4][%cal Bf6d7,Bd7e5,Be5d3][%mdl 32]} 17. Qd4 {[%emt 0:00:59]} f6 $36 {[%emt 0:05:13][%cal Rd7e5,Bf7f6,Bf6f5,Bf5f4][%mdl 2080] Black has good play.} 18. h5 {[%emt 0:02:10]} Nxe5 {[%emt 0:01:05][%cal Oe5d3]} 19. Nf1 $2 {[%emt 0:08:10] [#]} ({White should try} 19. hxg6 $1 $15 hxg6 20. Rxe5 fxe5 21. Qg4) 19... Nd3 $1 $19 {[%emt 0:04:28]} (19... gxh5 20. Ba3 $17) 20. Bxd3 {[%emt 0:00:57] [#]} f5 $1 {[%emt 0:00:28]} ({Not} 20... cxd3 21. Qxd3 f5 22. hxg6 $15) 21. Qe3 {[%emt 0:00:29]} (21. Qf4 $142 cxd3 22. hxg6) 21... f4 {[%emt 0:03:04]} ({Worse is} 21... cxd3 22. Qxd3 Qh4 23. hxg6 $19) 22. Qh3 {[%emt 0:00:54][%cal Oh5g6] Black must now prevent hxg6!} cxd3 {[%emt 0:00:10]} 23. hxg6 {[%emt 0:00:04]} hxg6 {[%emt 0:00:07]} (23... Bxc3 $2 24. Qxh7#) 24. Rxe6 {[%emt 0:01:06]} Bxe6 {[%emt 0:03:52]} 25. Qxe6+ {[%emt 0:00:02]} Rf7 {[%emt 0:00:54]} 26. Qxg6 {[%emt 0:00:24]} Qd7 {[%emt 0:00:57]} ({But not} 26... Qf6 $2 27. Qxd3 Rd8 28. Qe2) 27. Bd2 {[%emt 0:00:42]} Qxb5 {[%emt 0:01:43]} 28. Re1 {[%emt 0:00:05]} Qf5 {[%emt 0:02:27]} 29. Qd6 {[%emt 0:00:01]} Ra6 {[%emt 0:01:15][%cal Ba8a6,Ba6h6,Bh6h2][%mdl 32]} 30. Qb8+ {[%emt 0:00:01]} Kh7 {[%emt 0:02:16]} 31. Nh2 $2 {[%emt 0:00:01]} (31. Qe8 Rg6 32. Qe4) 31... Rh6 {[%emt 0:01:22] Threatens to win with ...Rg6. Black is clearly winning.} 32. Qd8 {[%emt 0:00:01]} Bf8 {[%emt 0:18:21] ...Rg7 is the strong threat.} 33. Qd4 {[%emt 0:05:31]} Bc5 {[%emt 0:12:57]} 34. Qe5 {[%emt 0:01:05]} Qxe5 {[%emt 0:00:46]} 35. Rxe5 {[%emt 0:00:01] [#]} Bxf2+ {[%emt 0:00:06][%mdl 512]} 36. Kxf2 {[%emt 0:00:03] aiming for Nf3.} Rxh2 {[%emt 0:00:07]} 37. Kg1 {[%emt 0:00:07] [#] Prevents f3.} f3 $1 {[%emt 0:00:44] White did not feel at home in the position after the opening.   Weighted Error Value: White=0.68/Black=0.25 (precise)} 0-1

[Event "US Masters 2022"]
[Site "Charlotte"]
[Date "2022.11.27"]
[Round "7.2"]
[White "Naroditsky, Daniel"]
[Black "Macieja, Bartlomiej"]
[Result "1/2-1/2"]
[ECO "B12"]
[WhiteElo "2617"]
[BlackElo "2514"]
[Annotator "TA"]
[PlyCount "35"]
[EventDate "2022.11.23"]
[EventType "swiss"]
[EventCountry "USA"]
[SourceTitle "playchess.com"]
[Source "ChessBase"]
[SourceQuality "1"]
[TimeControl "5400+30"]

{[%evp 9,35,4,22,27,29,29,28,30,21,22,20,27,35,31,30,23,22,22,43,16,29,12,27,31,28,25,29,27]} 1. e4 {[%emt 0:01:41]} c6 {[%emt 0:01:51]} 2. d4 {[%emt 0:00:09]} d5 {[%emt 0:00:04]} 3. e5 {[%emt 0:00:05]} Bf5 {[%emt 0:00:07]} 4. Nd2 {[%emt 0:00:35]} e6 {[%emt 0:00:05]} 5. Nb3 {[%emt 0:00:04]} c5 {[%emt 0:00:16]} 6. dxc5 {[%emt 0:00:34] B12: Caro-Kann: Advance Variation.} Bxc5 {[%emt 0:00:06][%mdl 64] [#]} 7. Nxc5 {[%emt 0:00:04]} Qa5+ {[%emt 0:00:03]} 8. c3 {[%emt 0:00:09]} Qxc5 {[%emt 0:00:02]} 9. Be3 {[%emt 0:00:56]} Qc7 {[%emt 0:00:12]} 10. f4 {[%emt 0:01:10]} Ne7 {[%emt 0:00:06]} 11. Nf3 {[%emt 0:01:03]} Nbc6 {[%emt 0:00:06]} 12. Be2 {[%emt 0:01:14]} O-O {[%emt 0:00:04]} 13. O-O {[%emt 0:00:13]} h6 {[%emt 0:00:07] [#]} 14. Qd2 $5 $146 {[%emt 0:02:39][%mdl 8] New and interesting.} ({Predecessor:} 14. Kh1 Be4 15. Nd2 Bh7 16. Nb3 Na5 17. Bc5 Rfe8 18. Bd6 Qb6 19. Nxa5 Qxa5 20. b4 {0-1 (61) Navara,D (2724)-Yuffa,D (2577) Khanty-Mansiysk 2019}) 14... Rac8 {[%emt 0:00:26]} 15. b3 {[%emt 0:08:01]} Rfd8 {[%emt 0:03:01]} 16. Rac1 {[%emt 0:09:11]} Rd7 {[%emt 0:30:02]} 17. h3 {[%emt 0:14:40]} Be4 {[%emt 0:00:21]} 18. Bf2 {[%emt 0:01:48] Weighted Error Value: White=0.04 (flawless) /Black=0.06 (flawless)} 1/2-1/2

[Event "US Masters 2022"]
[Site "Charlotte"]
[Date "2022.11.27"]
[Round "7.3"]
[White "Rahul Srivatshav P"]
[Black "Oparin, Grigoriy"]
[Result "1/2-1/2"]
[ECO "D36"]
[WhiteElo "2498"]
[BlackElo "2683"]
[Annotator "TA"]
[PlyCount "68"]
[EventDate "2022.11.23"]
[EventType "swiss"]
[EventCountry "USA"]
[SourceTitle "playchess.com"]
[Source "ChessBase"]
[SourceQuality "1"]
[TimeControl "5400+30"]

{[%evp 23,68,19,15,0,5,0,21,0,-7,-4,-8,-14,-17,-34,-24,-22,-20,-76,-63,-78,-62,-41,0,0,0,0,0,0,0,0,0,0,0,0,0,0,0,0,0,0,0,0,8,8,8,8,22]} 1. d4 {[%emt 0:13:18]} Nf6 {[%emt 0:00:06]} 2. c4 {[%emt 0:00:32]} e6 {[%emt 0:00:05]} 3. Nc3 {[%emt 0:00:03]} d5 {[%emt 0:00:12]} 4. cxd5 {[%emt 0:00:08]} exd5 {[%emt 0:00:06]} 5. Bg5 {[%emt 0:00:06]} c6 {[%emt 0:00:14]} 6. e3 {[%emt 0:00:17]} h6 {[%emt 0:00:16]} 7. Bh4 {[%emt 0:02:14]} Be7 {[%emt 0:00:11]} 8. Bd3 {[%emt 0:01:33]} O-O {[%emt 0:00:30]} 9. Nf3 {[%emt 0:04:02]} Re8 {[%emt 0:00:52]} 10. O-O {[%emt 0:01:43]} Nbd7 {[%emt 0:00:44]} 11. Qc2 {[%emt 0:06:02]} Ne4 {[%emt 0:01:28][%cal Bf6e4,Be4g5,Bg5e6][%mdl 32]} 12. Bxe7 {[%emt 0:02:10]} Qxe7 {[%emt 0:00:05]} 13. a4 {[%emt 0:01:25] [#] 13.b4 is the modern continuation. D36: Queen's Gambit Declined: Exchange Variation: Main line (5 Bg5 c6 6 Qc2).} Ng5 $146 {[%emt 0:14:19]} ({Predecessor:} 13... a5 14. Rfe1 Ndf6 15. Bxe4 dxe4 16. Ne5 Bf5 17. f3 Nd5 18. Nxe4 f6 19. Nc4 Bxe4 20. fxe4 Qxe4 {1-0 (39) Tham,M (1844)-Gallasch,R (2067) Playchess.com INT 2020}) 14. Nd2 {[%emt 0:11:05]} Nf6 {[%emt 0:15:07]} 15. Rae1 {[%emt 0:04:45]} Bd7 {[%emt 0:03:27]} 16. f4 {[%emt 0:10:04]} Ne6 {[%emt 0:00:11]} 17. Nf3 {[%emt 0:00:21]} c5 {[%emt 0:01:37]} 18. Qf2 {[%emt 0:13:02]} cxd4 {[%emt 0:08:31]} 19. exd4 {[%emt 0:00:07]} Qb4 {[%emt 0:00:04]} 20. f5 {[%emt 0:01:04]} (20. Bc2 $1 $11 {keeps the balance.}) 20... Ng5 $17 {[%emt 0:00:58] And now ...Ng4 would win.} 21. Ne5 {[%emt 0:01:20] Inhibits Ng4.} Bxa4 {[%emt 0:00:14]} 22. h4 {[%emt 0:02:46]} Nge4 {[%emt 0:00:07]} (22... Ngh7 {simplifies} 23. g4 Bc6 24. Re2 Rad8) 23. Bxe4 {[%emt 0:03:39] The position is equal.} dxe4 {[%emt 0:00:06]} 24. Nxe4 {[%emt 0:01:41]} Nxe4 {[%emt 0:00:23]} 25. Rxe4 {[%emt 0:00:17] [#] Threatens to win with f6.} f6 {[%emt 0:03:17] White must now prevent ...Rxe5.} 26. Rfe1 $1 {[%emt 0:06:34]} Qd6 {[%emt 0:21:12][%cal Oa8c8]} 27. Ng6 {[%emt 0:06:57]} Rxe4 {[%emt 0:00:39]} 28. Rxe4 {[%emt 0:00:04]} Bd7 {[%emt 0:00:10]} 29. Ne7+ {[%emt 0:03:52]} Kh7 {[%emt 0:03:45]} 30. d5 {[%emt 0:01:31]} Re8 {[%emt 0:11:50]} 31. Qe3 {[%emt 0:00:23]} a5 {[%emt 0:00:04]} 32. g4 {[%emt 0:01:03][%cal Bg2g4,Bg4g5][%mdl 32]} Rxe7 {[%emt 0:00:44]} 33. Rxe7 {[%emt 0:00:05] Strongly threatening g5.} Qxd5 {[%emt 0:00:03]} 34. g5 {[%emt 0:01:37]} Qxf5 {[%emt 0:07:02] Weighted Error Value: White=0.06 (flawless) /Black=0.04 (flawless)} ({Don't play} 34... Bc6 35. g6+ Kh8 36. Qg3 Qd1+ 37. Re1 Qd4+ 38. Qf2 $16) 1/2-1/2

[Event "US Masters 2022"]
[Site "Charlotte"]
[Date "2022.11.27"]
[Round "7.5"]
[White "Beradze, Irakli"]
[Black "Burke, John M"]
[Result "1/2-1/2"]
[ECO "A09"]
[WhiteElo "2494"]
[BlackElo "2580"]
[Annotator "TA"]
[PlyCount "105"]
[EventDate "2022.11.23"]
[EventType "swiss"]
[EventCountry "USA"]
[SourceTitle "playchess.com"]
[Source "ChessBase"]
[SourceQuality "1"]
[TimeControl "5400+30"]

{[%evp 9,105,-15,8,2,13,0,-1,-4,12,0,0,13,12,0,41,26,26,24,75,70,71,0,0,9,14,12,17,-45,-29,-68,-72,-69,-68,-96,-88,-82,-77,-121,-116,-151,-135,-131,-153,-196,-116,-116,-126,-122,-118,-113,-62,-77,-15,-32,45,29,42,44,36,43,184,208,223,223,223,223,221,226,230,143,141,141,211,216,689,682,682,681,667,123,324,316,580,97,404,97,97,97,97,97,97,97,97,89,89,89,89,89]} 1. Nf3 {[%emt 0:05:51]} d5 {[%emt 0:00:08]} 2. g3 {[%emt 0:00:06]} g6 {[%emt 0:00:06]} 3. c4 {[%emt 0:00:47]} dxc4 {[%emt 0:00:10]} 4. Na3 {[%emt 0:00:04]} Bg7 {[%emt 0:01:26]} 5. Nxc4 {[%emt 0:00:07]} c5 {[%emt 0:00:11]} (5... Nc6 $5 {[%cal Re7e5]}) 6. Bg2 {[%emt 0:00:54] A09: Réti Opening: 1 Nf3 d5 2 c4.} Nc6 {[%emt 0:00:06] Inhibits Nfe5.} 7. d3 {[%emt 0:00:51]} Nf6 {[%emt 0:00:59]} 8. O-O {[%emt 0:07:37] The position is equal.} O-O {[%emt 0:02:59]} 9. Be3 {[%emt 0:04:25] [#]} Nd5 $146 {[%emt 0:05:54]} ({Predecessor:} 9... b6 10. Nfe5 Nxe5 11. Nxe5 Be6 12. Bxa8 Qxa8 13. Nf3 Bg4 14. Rc1 Bxf3 15. exf3 Rd8 {1-0 (36) Fedoseev,V (2662)-Anand,V (2785) Dubai 2014}) 10. Bxc5 {[%emt 0:04:41]} b6 $1 {[%emt 0:00:46][%cal Bb7b6,Bb6b5,Bb5b4][%mdl 32] Inhibits d4.} 11. e4 {[%emt 0:09:01]} Nc7 {[%emt 0:02:27]} 12. Be3 {[%emt 0:00:16] And now d4 would win.} b5 {[%emt 0:00:04] Inhibits d4.} 13. Ncd2 {[%emt 0:00:03] Strongly threatening Rc1.} Bxb2 {[%emt 0:06:30]} (13... Qxd3 $11 {remains equal.} 14. Rc1 Bb7) 14. Rb1 $16 {[%emt 0:00:25]} Bg7 {[%emt 0:00:11]} 15. Nb3 {[%emt 0:00:38]} (15. Qc2 $16 Bd7 16. d4) 15... b4 $1 $11 {[%emt 0:13:44]} 16. Rc1 {[%emt 0:16:34]} Bd7 {[%emt 0:05:13]} 17. d4 {[%emt 0:09:35]} Nb5 {[%emt 0:02:38]} 18. e5 {[%emt 0:02:45]} (18. Qd3 $11 Nc3 19. Bd2) 18... Nc3 $15 {[%emt 0:06:00]} 19. Qd2 {[%emt 0:02:30][%cal Oa2a3]} Na5 {[%emt 0:04:03] Against a3} (19... Be6 {with more complications.} 20. Nc5 Bd5 21. a3 a5) 20. Nxa5 {[%emt 0:09:34]} Qxa5 {[%emt 0:00:04]} 21. Rc2 {[%emt 0:00:53]} Rac8 {[%emt 0:05:13]} 22. Rb2 {[%emt 0:00:05]} Be6 {[%emt 0:01:07]} 23. Ng5 {[%emt 0:04:20]} Bc4 {[%emt 0:01:21]} (23... Nxa2 $2 24. Nxe6 Nc3 25. Nxf8 Kxf8 26. f4 $18) (23... Bxa2 24. Ra1 $16) 24. Ra1 {[%emt 0:00:24]} Rfd8 $1 {[%emt 0:02:05]} 25. Qe1 {[%emt 0:01:22]} Qa3 {[%emt 0:02:25]} ({Much less strong is} 25... Nxa2 26. Qb1 $18 (26. Qd2 Bxe5 27. Bf1 Bxf1 $11)) 26. Rc2 {[%emt 0:05:46]} Nxa2 {[%emt 0:11:59]} (26... h6 $1 $19 {[%cal Rh6g5]} 27. Nh3 Nxa2) 27. Rxc4 $17 {[%emt 0:04:09][%mdl 64]} Rxc4 {[%emt 0:00:04]} 28. Nxf7 {[%emt 0:00:03][%mdl 64]} Kxf7 {[%emt 0:04:03]} 29. Qe2 {[%emt 0:00:20][%csl LRa2,LRc4]} Qb3 {[%emt 0:06:35]} 30. Rxa2 $15 {[%emt 0:00:03]} Rc7 {[%emt 0:01:05]} ({Don't play} 30... Qb1+ 31. Bf1 Rc7 32. Rb2 $14) (30... Rcxd4 $1 $17 31. Bxd4 Rxd4) 31. Be4 $11 {[%emt 0:01:21] Prevents Qb1+. A strong pair of Bishops.} Qe6 {[%emt 0:03:22]} (31... Kg8 $15) 32. Ra6 {[%emt 0:03:52][%mdl 1024] White has compensation.} Qc4 {[%emt 0:00:26]} 33. Qf3+ {[%emt 0:00:28]} Kg8 {[%emt 0:01:01]} 34. Rd6 $36 {[%emt 0:00:03][%mdl 2112] White has good play. Really sharp!} Rf8 {[%emt 0:03:49]} (34... Rxd6 $2 35. exd6 e6 36. dxc7 $18) (34... exd6 $14 35. Bd5+ Qxd5 36. Qxd5+ Kh8) 35. Bd5+ $18 {[%emt 0:00:10]} Kh8 {[%emt 0:01:14]} 36. Rf6 {[%emt 0:04:50]} exf6 {[%emt 0:00:18]} (36... Rxf6 $2 37. exf6 Bxf6 38. Bxc4 $18) 37. Bxc4 {[%emt 0:00:02]} Rxc4 {[%emt 0:00:05]} 38. Qd5 {[%emt 0:01:29]} Rcc8 {[%emt 0:01:47]} 39. e6 {[%emt 0:00:13][%cal Be5e6,Be6e7][%mdl 32]} a5 {[%emt 0:01:01]} 40. Qb3 {[%emt 0:02:06] Prevents a4. Threatens to win with d5. White is more active.} ({Don't do} 40. Qxa5 b3 41. Qa3 Rb8 $14) 40... Rfd8 {[%emt 0:02:46] [#]} (40... Ra8 $16) 41. d5 $1 {[%emt 0:00:45] aiming for e7.} a4 $2 {[%emt 0:01:19]} (41... Bf8 42. Bb6 Re8) 42. Qxa4 {[%emt 0:01:21] Black must now prevent e7.} Rxd5 {[%emt 0:00:04]} 43. e7 {[%emt 0:00:18] Inhibits Bf8.} Re5 {[%emt 0:00:03] Against e8Q+} 44. Qxb4 {[%emt 0:00:49]} (44. Qd7 $18 Rg8 45. Bd4 Re1+ 46. Kg2) 44... Re8 {[%emt 0:02:29]} (44... h5 $16 45. h4 Re8) 45. Bc5 {[%emt 0:00:06]} h5 $2 {[%emt 0:00:26]} (45... Bh6 {is a better defense.} 46. f4 Re6) 46. Kf1 $2 {[%emt 0:00:40]} (46. Qd4 $18 {and White stays clearly on top.}) 46... Re6 $2 {[%emt 0:00:55][%mdl 8192] [#]} (46... f5 $16 {is a better chance.} 47. Qb6 Kh7) 47. Qb3 $2 {[%emt 0:00:45]} (47. g4 $1 $18 {[%cal Rg4h5] and the rest is easy.} hxg4 48. Qxg4 R8xe7 49. Bxe7 Rxe7 50. Qxg6) 47... R6xe7 {[%emt 0:00:07] White is better.} 48. Bxe7 {[%emt 0:00:05]} Rxe7 $16 {[%emt 0:00:02] KQ-KRB} 49. h3 {[%emt 0:00:27]} f5 {[%emt 0:00:33]} 50. Qd5 {[%emt 0:00:26] Qd8+ is the strong threat.} Kh7 {[%emt 0:00:06]} 51. g4 {[%emt 0:00:43]} hxg4 {[%emt 0:00:08]} 52. hxg4 {[%emt 0:00:03]} fxg4 {[%emt 0:00:11]} 53. Qg2 {[%emt 0:00:14] Never resign too early!   Weighted Error Value: White=0.38/Black=0.53} 1/2-1/2